fUSD/lending_fUSD_20251002
["ID","MTS","AMOUNT","RATE_DAILY","PERIOD"]
[388833806,1759407047620,-151.0,0.00021917,2]
[388833808,1759407047631,-151.0,0.00021917,2]
[388833810,1759407047643,-151.0,0.00021917,2]
[388833812,1759407047656,-160.581577,0.00021917,2]
[388833814,1759407047668,-151.0,0.00021917,2]
[388833816,1759407047679,-151.0,0.00021917,2]
[388833818,1759407047692,-255.936052,0.00021917,2]
[388833820,1759407047704,-1121.58,0.00021917,2]
[388833822,1759407047716,-500.0,0.00021917,2]
[388833825,1759407047729,-603.16,0.00021917,2]
[388833827,1759407047741,-2456.13,0.00021917,2]
[388833829,1759407047753,-500.0,0.00021917,2]
[388833832,1759407047771,-564.08,0.00021917,2]
[388833834,1759407047785,-500.0,0.00021917,2]
[388833837,1759407047800,-500.70045352,0.00021917,2]
[388833839,1759407047815,-982.68,0.00021917,2]
[388833842,1759407047830,-1918.49,0.00021917,2]
[388833844,1759407047845,-707.27,0.00021917,2]
[388833845,1759407047859,-500.0,0.00021917,2]
[388833846,1759407047874,-1963.05,0.00021917,2]
[388833847,1759407047888,-500.0,0.00021917,2]
[388833848,1759407047902,-500.0,0.00021917,2]
[388833849,1759407047915,-500.0,0.00021917,2]
[388833850,1759407047929,-500.0,0.00021917,2]
[388833851,1759407047944,-500.0,0.00021917,2]
[388833852,1759407047958,-500.0,0.00021917,2]
[388833853,1759407047970,-500.0,0.00021917,2]
[388833854,1759407047984,-678.98,0.00021917,2]
[388833855,1759407047998,-500.0,0.00021917,2]
[388833856,1759407048011,-1406.91,0.00021917,2]
[388833857,1759407048024,-500.0,0.00021917,2]
[388833858,1759407048038,-151.0,0.00021917,2]
[388833859,1759407048051,-500.0,0.00021917,2]
[388833860,1759407048064,-500.0,0.00021917,2]
[388833861,1759407048077,-151.0,0.00021917,2]
[388833862,1759407048091,-500.0,0.00021917,2]
[388833863,1759407048104,-151.0,0.00021917,2]
[388833864,1759407048118,-500.0,0.00021917,2]
[388833865,1759407048140,-500.0,0.00021917,2]
[388833866,1759407048155,-500.0,0.00021917,2]
[388833868,1759407048169,-500.4582028,0.00021917,2]
[388833870,1759407048184,-500.0,0.00021917,2]
[388833871,1759407048199,-500.0,0.00021917,2]
[388833873,1759407048212,-500.0,0.00021917,2]
[388833875,1759407048227,-500.0,0.00021917,2]
[388833878,1759407048241,-500.0,0.00021917,2]
[388833880,1759407048255,-500.0,0.00021917,2]
[388833883,1759407048269,-1087.7,0.00021917,2]
[388833885,1759407048282,-500.0,0.00021917,2]
[388833888,1759407048297,-500.0,0.00021917,2]
[388833890,1759407048309,-500.0,0.00021917,2]
[388833893,1759407048322,-838.13,0.00021917,2]
[388833895,1759407048335,-5509.8,0.00021917,2]
[388833898,1759407048349,-500.0,0.00021917,2]
[388833900,1759407048362,-500.0,0.00021917,2]
[388833903,1759407048376,-151.0,0.00021917,2]
[388833905,1759407048388,-500.0,0.00021917,2]
[388833907,1759407048401,-1280.85,0.00021917,2]
[388833910,1759407048414,-151.0,0.00021917,2]
[388833912,1759407048427,-151.0,0.00021917,2]
[388833915,1759407048439,-151.0,0.00021917,2]
[388833917,1759407048452,-151.0,0.00021917,2]
[388833920,1759407048464,-1523.83,0.00021917,2]
[388833922,1759407048477,-3545.45,0.00021917,2]
[388833925,1759407048499,-151.0,0.00021917,2]
[388833927,1759407048513,-185.69407,0.00021917,2]
[388833930,1759407048527,-1013.94,0.00021917,2]
[388833932,1759407048542,-2910.45,0.00021917,2]
[388833935,1759407048555,-500.0,0.00021917,2]
[388833937,1759407048568,-151.0,0.00021917,2]
[388833940,1759407048582,-2166.16800248,0.00021917,2]
[388834102,1759407050226,-822.60199752,0.00021917,2]
[388834103,1759407050237,-151.0,0.00021917,2]
[388834104,1759407050246,-151.0,0.00021917,2]
[388834105,1759407050255,-160.34889,0.00021917,2]
[388834106,1759407050265,-500.0,0.00021917,2]
[388834107,1759407050274,-500.0,0.00021917,2]
[388834108,1759407050283,-500.0,0.00021917,2]
[388834109,1759407050293,-2440.61,0.00021917,2]
[388834110,1759407050302,-105.19676045,0.00021917,2]
[388834111,1759407050315,-394.80323955,0.00021917,2]
[388834112,1759407050324,-500.0,0.00021917,2]
[388834113,1759407050333,-501.0044812,0.00021917,2]
[388834114,1759407050343,-500.0,0.00021917,2]
[388834115,1759407050352,-500.0,0.00021917,2]
[388834116,1759407050362,-1222.49228022,0.00021917,2]
[388834117,1759407050375,-3715.04771978,0.00021917,2]
[388834118,1759407050384,-253.95227021,0.00021917,2]
[388834119,1759407050399,-246.04772979,0.00021917,2]
[388834120,1759407050409,-500.0,0.00021917,2]
[388834121,1759407050418,-282.15227001,0.00021917,2]
[388834161,1759407093650,161.58,0.00010506,2]
[388834162,1759407101198,156.08,0.00025395,120]
[388834165,1759407115016,-151.0,0.00020316,2]
[388834199,1759407295664,-5.08,0.00020316,2]
[388834200,1759407295706,-161.030058,0.00020316,2]
[388834204,1759407304768,-574.67,0.00017759,2]
[388834206,1759407309499,-500.0,0.00020315,2]
[388834208,1759407316521,-152.58996,0.00020315,2]
[388834212,1759407323481,-222.920943,0.00020315,2]
[388834231,1759407400872,-124.489097,0.00020315,2]
[388834232,1759407400898,-120.641864,0.00020316,2]
[388834233,1759407401151,-9.738078,0.00020316,2]
[388834235,1759407407152,-500.0,0.00020823,2]
[388834238,1759407415007,-500.0,0.00020823,2]
[388834240,1759407422683,-587.2,0.00020316,2]
[388834241,1759407428993,-500.0,0.00020316,2]
[388834242,1759407436545,-0.2,0.00020316,2]
[388834243,1759407436610,-667.33,0.00020823,2]
[388834244,1759407444822,-165.33,0.0002082,2]
[388834245,1759407445113,-169.34,0.00020823,2]
[388834246,1759407451279,-1916.3,0.00020823,2]
[388834247,1759407458383,-621.93,0.00020823,2]
[388834248,1759407466740,-1057.97,0.00020823,2]
[388834250,1759407473683,-538.29,0.00020822,2]
[388834252,1759407480689,-461.71,0.00020822,2]
[388834253,1759407480726,-267.18,0.00020823,2]
[388834254,1759407482107,422.07,0.00021945,30]
[388834255,1759407488107,-500.0,0.00020823,2]
[388834256,1759407494785,-500.0,0.00020822,2]
[388834257,1759407506436,-191.266,0.00020822,2]
[388834258,1759407506469,-117.468,0.00020823,2]
[388834260,1759407513742,-500.0,0.00020823,2]
[388834262,1759407520815,-592.74,0.00020823,2]
[388834264,1759407527848,-2045.25,0.00020823,2]
[388834265,1759407535757,-500.0,0.00020823,2]
[388834266,1759407548127,-500.0,0.00020823,2]
[388834268,1759407555167,-500.0,0.00020823,2]
[388834269,1759407562600,-500.0,0.00020823,2]
[388834270,1759407570047,-1453.08,0.00020823,2]
[388834272,1759407577104,-1183.42,0.00020823,2]
[388834273,1759407584039,-1177.16,0.00020823,2]
[388834274,1759407596191,-1961.14973012,0.00020799,2]
[388834275,1759407596888,-7990.63523136,0.00020823,2]
[388834421,1759407910893,207.35350871,0.000154,2]
[388834433,1759407945222,294.61604804,0.00015323,20]
[388834451,1759407958454,-150.0,0.00019701,2]
[388834452,1759407958993,-50.0,0.00019701,2]
[388834453,1759407959050,-100.0,0.00019701,2]
[388834455,1759407963776,4346.86988392,8e-05,2]
[388834459,1759407975496,-150.0,0.00019701,2]
[388834460,1759407975535,-200.0,0.00019701,2]
[388834463,1759407989425,159.92,0.00010277,2]
[388834464,1759407989513,159.92,0.00011211,2]
[388834465,1759407989646,159.92,0.00012145,2]
[388834466,1759407989821,159.92,0.0001308,2]
[388834467,1759407991022,159.92,0.00014014,2]
[388834468,1759407991264,159.92,0.00014948,2]
[388834469,1759407991426,159.92,0.00015883,2]
[388834470,1759407991643,-159.92,0.00016817,2]
[388834471,1759407992968,-159.92,0.00017751,2]
[388834472,1759407993006,-159.92,0.00018685,2]
[388834473,1759407993048,-159.92,0.0001962,2]
[388834474,1759407993104,-27.65,0.00019701,2]
[388834477,1759408010744,-46.99,0.00019701,2]
[388834478,1759408010856,-75.36,0.00019701,2]
[388834482,1759408027499,-208.273101,0.00019701,2]
[388834483,1759408027528,-55.383798,0.00019701,2]
[388834484,1759408027567,-94.616202,0.00019701,2]
[388834488,1759408045021,-117.18,0.00019701,2]
[388834489,1759408045279,-32.82,0.00019701,2]
[388834491,1759408061500,-150.0,0.00019701,2]
[388834492,1759408061529,-50.0,0.00019701,2]
[388834493,1759408061564,-100.0,0.00019701,2]
[388834497,1759408096667,-38.82454301,0.00019701,2]
[388834498,1759408096726,-113.61691398,0.00019701,2]
[388834512,1759408122983,161.92,0.00015,2]
[388834519,1759408199978,-168.0,0.00019499,2]
[388834553,1759408232123,-150.0,0.00019701,2]
[388834555,1759408232133,-168.0,0.00020012,2]
[388834556,1759408232142,-11.5745001,0.00020029,2]
[388834557,1759408232156,-156.4254999,0.00020029,2]
[388834558,1759408232165,-168.0,0.00020045,2]
[388834559,1759408232175,-136.08798605,0.00020146,2]
[388834560,1759408232186,-58.91201395,0.00020146,2]
[388834561,1759408232196,-150.0,0.00020502,2]
[388834562,1759408232205,-442.93,0.00020527,2]
[388834563,1759408232215,-159.92,0.00020554,2]
[388834564,1759408232224,-150.41705562,0.00020568,2]
[388834565,1759408232234,-31.89921364,0.00020591,2]
[388834566,1759408232245,-168.10078636,0.00020591,2]
[388834567,1759408232255,-168.0,0.00020596,2]
[388834568,1759408232264,-158.56,0.0002062,2]
[388834569,1759408232273,-1708.62,0.00020668,2]
[388834570,1759408232282,-300.0,0.00020695,2]
[388834571,1759408232291,-1200.0,0.00020695,2]
[388834572,1759408232301,-2151.70153973,0.00020696,2]
[388834573,1759408232312,-675.0,0.00020696,2]
[388834574,1759408232323,-259.69942639,0.00020696,2]
[388834575,1759408232346,-602.43089959,0.00020696,2]
[388834576,1759408232357,-5669.93430139,0.00020696,2]
[388834577,1759408232366,-9879.30676864,0.00020823,2]
[388834578,1759408232375,-227.66,0.00020869,2]
[388834579,1759408232384,-227.08,0.00020946,2]
[388834580,1759408232393,-156.7805736,0.00020977,2]
[388834581,1759408232403,-302.3793959,0.00021101,2]
[388834582,1759408232412,-500.0,0.00021101,2]
[388834583,1759408232422,-500.0,0.00021101,2]
[388834584,1759408232431,-500.0,0.00021101,2]
[388834585,1759408232440,-500.0,0.00021101,2]
[388834586,1759408232450,-500.0,0.00021101,2]
[388834587,1759408232459,-500.0,0.00021101,2]
[388834588,1759408232468,-200.0,0.00021101,2]
[388834589,1759408232477,-500.0,0.00021101,2]
[388834590,1759408232486,-500.0,0.00021101,2]
[388834591,1759408232495,-151.0,0.00021101,2]
[388834592,1759408232504,-151.0,0.00021101,2]
[388834593,1759408232514,-151.0,0.00021101,2]
[388834594,1759408232523,-151.0,0.00021101,2]
[388834595,1759408232532,-151.0,0.00021101,2]
[388834596,1759408232541,-151.0,0.00021101,2]
[388834597,1759408232551,-169.76617187,0.00021101,2]
[388834598,1759408232560,-902.66958966,0.00021114,2]
[388834599,1759408232571,-5107.18,0.00021114,2]
[388834600,1759408232582,-744.07494815,0.00021114,2]
[388834601,1759408232699,-1356.355005,0.00021114,2]
[388834602,1759408232733,-2505.81409613,0.00021114,2]
[388834603,1759408232744,-127.94636106,0.00021114,2]
[388834604,1759408232754,-168.0,0.00021117,2]
[388834605,1759408232766,-1811.42604587,0.00021212,2]
[388834606,1759408232909,-1098.99573606,0.00021212,2]
[388834607,1759408232957,-529.27738467,0.00021212,2]
[388834608,1759408232967,-1771.22742215,0.00021259,2]
[388834609,1759408232976,-370.49393606,0.00021303,2]
[388834610,1759408232985,-210.43601146,0.00021331,2]
[388834611,1759408232998,-168.0,0.00021384,2]
[388834612,1759408233007,-200.0,0.000214,7]
[388834613,1759408233016,-2000.0,0.000214,2]
[388834614,1759408233025,-168.0,0.00021455,2]
[388834615,1759408233035,-8807.0347175,0.00021495,2]
[388834616,1759408233045,-1252.7212,0.00021495,2]
[388834617,1759408233054,-500.0,0.000215,7]
[388834618,1759408233063,-34098.90090851,0.00021528,2]
[388834619,1759408233075,-2677.03916883,0.0002153,2]
[388834620,1759408233084,-536.79377285,0.0002153,2]
[388834621,1759408233094,-587.96962558,0.00021531,2]
[388834622,1759408233103,-155.05334232,0.00021538,2]
[388834623,1759408233113,-1110.64767205,0.00021539,2]
[388834624,1759408233122,-158.14603605,0.00021542,2]
[388834625,1759408233131,-2537.32542596,0.00021542,2]
[388834626,1759408233141,-158.14603605,0.00021543,2]
[388834627,1759408233151,-745.51687065,0.00021543,2]
[388834628,1759408233160,-297.50750094,0.00021544,2]
[388834629,1759408233170,-2677.03916883,0.00021548,2]
[388834630,1759408233179,-787.02751,0.00021556,2]
[388834631,1759408233189,-536.79377285,0.00021568,2]
[388834632,1759408233198,-34098.90090851,0.00021569,2]
[388834633,1759408233208,-536.79377285,0.00021569,2]
[388834634,1759408233217,-745.51687065,0.0002157,2]
[388834635,1759408233227,-34098.90090851,0.0002157,2]
[388834636,1759408233236,-297.50750094,0.0002157,2]
[388834637,1759408233246,-587.96962558,0.00021571,2]
[388834638,1759408233255,-745.51687065,0.00021571,2]
[388834639,1759408233264,-158.14603605,0.00021576,2]
[388834641,1759408233275,-2677.03916883,0.00021577,2]
[388834643,1759408233284,-587.96962558,0.00021582,2]
[388834645,1759408233294,-2537.32542596,0.00021588,2]
[388834647,1759408233303,-2677.03916883,0.00021588,2]
[388834649,1759408233312,-155.05334232,0.00021589,2]
[388834650,1759408233322,-787.02751,0.00021591,2]
[388834651,1759408233332,-787.02751,0.00021591,2]
[388834652,1759408233341,-155.05334232,0.00021592,2]
[388834653,1759408233350,-2537.32542596,0.00021595,2]
[388834654,1759408233359,-700.0,0.000216,7]
[388834655,1759408233368,-2537.32542596,0.00021601,2]
[388834656,1759408233378,-787.02751,0.00021604,2]
[388834657,1759408233388,-2537.32542596,0.00021604,2]
[388834658,1759408233397,-1110.64767205,0.00021606,2]
[388834659,1759408233407,-745.51687065,0.00021608,2]
[388834660,1759408233417,-158.14603605,0.00021608,2]
[388834661,1759408233426,-297.50750094,0.00021609,2]
[388834662,1759408233436,-11950.33387069,0.00021612,2]
[388834663,1759408233448,-22148.56703782,0.00021612,2]
[388834664,1759408233458,-2677.03916883,0.00021617,2]
[388834665,1759408233589,-536.79377285,0.00021626,2]
[388834666,1759408233675,-587.96962558,0.0002163,2]
[388834667,1759408233685,-536.79377285,0.00021632,2]
[388834668,1759408233695,-1110.64767205,0.00021637,2]
[388834669,1759408233705,-745.51687065,0.00021639,2]
[388834670,1759408233715,-1110.64767205,0.00021641,2]
[388834671,1759408233725,-151.0,0.00021643,2]
[388834672,1759408233734,-587.96962558,0.00021643,2]
[388834673,1759408233744,-155.05334232,0.00021648,2]
[388834674,1759408233753,-297.50750094,0.00021655,2]
[388834675,1759408233763,-1110.64767205,0.00021655,2]
[388834676,1759408233772,-155.05334232,0.00021656,2]
[388834677,1759408233782,-158.14603605,0.00021657,2]
[388834678,1759408233791,-168.0,0.0002166,2]
[388834679,1759408233801,-25423.33158901,0.00021661,2]
[388834680,1759408233813,-900.66925362,0.00021661,2]
[388834683,1759408238452,-1002.96668125,0.00020778,2]
[388834684,1759408238462,-312.7195548,0.00021259,2]
[388834685,1759408238474,-808.71829025,0.00021259,2]
[388834686,1759408238485,-206.98272156,0.00021259,2]
[388834687,1759408238495,-289.60727844,0.00021661,2]
[388834688,1759408238507,-460.36906848,0.00021661,2]
[388834689,1759408238519,-1085.09011866,0.00021661,2]
[388834690,1759408238551,-5939.8336003,0.00021661,2]
[388834691,1759408238560,-195.0,0.00021672,2]
[388834692,1759408238570,-216.3843548,0.00021672,2]
[388834693,1759408238580,-787.02751,0.00021682,2]
[388834694,1759408238589,-2016.401,0.00021685,2]
[388834695,1759408238599,-297.50750094,0.00021691,2]
[388834696,1759408238608,-1000.0,0.000217,7]
[388834697,1759408238618,-439.21726,0.000217,2]
[388834698,1759408238627,-495.16545255,0.00021717,2]
[388834699,1759408238639,-114.041387,0.00021717,2]
[388834700,1759408238649,-1300.0,0.000218,7]
[388834701,1759408238659,-237.3113,0.00021811,2]
[388834702,1759408238669,-4519.961685,0.00021817,2]
[388834703,1759408238682,-480.038315,0.00021817,2]
[388834704,1759408238692,-159.44039609,0.00021817,2]
[388834705,1759408238701,-597.42456318,0.00021817,2]
[388834706,1759408238711,-265.72332325,0.00021817,2]
[388834707,1759408238723,-5157.08491774,0.00021817,2]
[388834708,1759408238732,-3420.75955772,0.00021817,2]
[388834709,1759408238741,-163.66258045,0.00021817,2]
[388834710,1759408238751,-494.5047,0.00021835,2]
[388834711,1759408238760,-2694.55061461,0.00021847,2]
[388834712,1759408238864,-726.20894305,0.00021847,2]
[388834713,1759408238874,-5422.8082409,0.00021864,2]
[388834714,1759408238884,-395.33639802,0.00021873,2]
[388834715,1759408238893,-3420.75955766,0.00021878,2]
[388834716,1759408238904,-1283.0,0.00021895,2]
[388834717,1759408238914,-150.0,0.00021895,2]
[388834718,1759408238923,-150.0,0.00021895,2]
[388834719,1759408238933,-150.0,0.00021895,2]
[388834720,1759408238942,-150.0,0.00021895,2]
[388834721,1759408238952,-500.0,0.00021895,2]
[388834722,1759408238961,-500.0,0.00021895,2]
[388834723,1759408238971,-150.0,0.00021895,2]
[388834724,1759408238980,-500.0,0.00021895,2]
[388834725,1759408238990,-152.51179282,0.00021895,2]
[388834726,1759408239002,-500.0,0.00021895,2]
[388834727,1759408239011,-200.0,0.000219,7]
[388834728,1759408239022,-150.0,0.000219,2]
[388834729,1759408239032,-251.63,0.000219,7]
[388834730,1759408239042,-502.27805299,0.000219,2]
[388834731,1759408239051,-814.0,0.00021904,2]
[388834732,1759408239061,-150.0,0.00021904,2]
[388834733,1759408239070,-150.0,0.00021904,2]
[388834734,1759408239082,-587.0,0.00021904,2]
[388834735,1759408239091,-500.0,0.00021904,2]
[388834736,1759408239100,-150.0,0.00021904,2]
[388834737,1759408239110,-150.0,0.00021904,2]
[388834738,1759408239120,-500.0,0.00021904,2]
[388834739,1759408239130,-200.0,0.00021904,2]
[388834740,1759408239139,-205.9399252,0.00021904,2]
[388834741,1759408239149,-500.0,0.00021904,2]
[388834742,1759408239158,-500.0,0.00021904,2]
[388834743,1759408239168,-357.0,0.00021906,2]
[388834744,1759408239178,-766.63895397,0.00021907,2]
[388834745,1759408239189,-3420.75955766,0.00021908,2]
[388834746,1759408239200,-1364.80622627,0.00021909,5]
[388834747,1759408239209,-194.062008,0.0002191,2]
[388834748,1759408239219,-500.0,0.0002191,2]
[388834749,1759408239229,-500.0,0.0002191,2]
[388834750,1759408239238,-500.0,0.0002191,2]
[388834751,1759408239247,-500.0,0.0002191,2]
[388834752,1759408239256,-500.0,0.0002191,2]
[388834753,1759408239266,-171.97640312,0.0002191,2]
[388834754,1759408239275,-500.0,0.0002191,2]
[388834755,1759408239284,-500.0,0.0002191,2]
[388834756,1759408239294,-500.0,0.0002191,2]
[388834757,1759408239315,-500.0,0.0002191,2]
[388834758,1759408239325,-500.0,0.0002191,2]
[388834759,1759408239334,-500.0,0.0002191,2]
[388834760,1759408239344,-500.0,0.0002191,2]
[388834761,1759408239353,-500.0,0.0002191,2]
[388834762,1759408239366,-500.0,0.0002191,2]
[388834763,1759408239375,-500.0,0.0002191,2]
[388834764,1759408239385,-500.0,0.0002191,2]
[388834765,1759408239396,-500.0,0.0002191,2]
[388834766,1759408239406,-350.0,0.0002191,2]
[388834767,1759408239416,-342.88049214,0.0002191,2]
[388834768,1759408239426,-500.0,0.0002191,2]
[388834769,1759408239436,-550.0,0.0002191,2]
[388834770,1759408239446,-500.0,0.0002191,2]
[388834771,1759408239456,-500.0,0.0002191,2]
[388834772,1759408239466,-500.0,0.0002191,2]
[388834773,1759408239476,-500.0,0.0002191,2]
[388834774,1759408239486,-500.0,0.0002191,2]
[388834775,1759408239496,-500.0,0.0002191,2]
[388834776,1759408239506,-277.02086289,0.0002191,5]
[388834777,1759408239517,-4573.147344,0.00021911,2]
[388834778,1759408239527,-63150.7547888,0.00021911,2]
[388834779,1759408239537,-5422.8082409,0.00021911,2]
[388834780,1759408239548,-227.66,0.00021912,2]
[388834781,1759408239557,-476.80447743,0.00021916,2]
[388834782,1759408239567,-150.0,0.00021916,2]
[388834783,1759408239577,-150.0,0.00021916,2]
[388834784,1759408239587,-150.0,0.00021916,2]
[388834785,1759408239596,-226.70139772,0.00021916,2]
[388834786,1759408239606,-150.0,0.00021916,2]
[388834787,1759408239616,-150.0,0.00021916,2]
[388834788,1759408239626,-1000.0,0.00021916,2]
[388834789,1759408239635,-150.0,0.00021916,2]
[388834790,1759408239645,-155.0,0.00021916,2]
[388834791,1759408239855,-469.9024789,0.00021916,2]
[388834793,1759408239865,-474.04734803,0.00021916,2]
[388834795,1759408239875,-300.0,0.00021916,2]
[388834796,1759408239884,-300.0,0.00021916,2]
[388834797,1759408239893,-727.0,0.00021917,2]
[388834798,1759408239903,-19540.39426201,0.00021917,2]
[388834799,1759408239916,-459.68,0.00021917,2]
[388834800,1759408239927,-1422.41859326,0.00021917,2]
[388834801,1759408239938,-16703.06996013,0.00021917,2]
[388834802,1759408239949,-1323.27193708,0.00021917,2]
[388834803,1759408239960,-34168.93885824,0.00021917,2]
[388834805,1759408239971,-610.56010705,0.00021917,2]
[388834806,1759408239982,-23772.04550981,0.00021917,2]
[388834807,1759408239998,-14575.17125966,0.00021917,2]
[388834808,1759408240032,-861.86579489,0.00021917,2]
[388834809,1759408240049,-1397.46721239,0.00021917,2]
[388834810,1759408240061,-720.73056041,0.00021917,2]
[388834828,1759408240745,-150.0,0.00021895,2]
[388834829,1759408240754,-30258.7305268,0.00021917,2]
[388834830,1759408240845,-314.94499064,0.00021917,2]
[388834831,1759408243042,-150.0,0.00021895,2]
[388834832,1759408243052,-150.0,0.00021895,2]
[388834833,1759408243061,-7495.60850713,0.00021917,2]
[388834834,1759408243209,-379.11000072,0.00021917,2]
[388834835,1759408243266,-500.0,0.00021895,2]
[388834836,1759408243276,-416.39087904,0.00021917,2]
[388834837,1759408243324,-1500.15000007,0.00021917,2]
[388834838,1759408243335,-6688.1783662,0.00021917,2]
[388834839,1759408243347,-730.65016026,0.00021917,2]
[388834847,1759408246179,-150.0,0.00021895,2]
[388834848,1759408246190,-150.0,0.00021895,2]
[388834849,1759408246199,-20446.42426838,0.00021917,2]
[388834850,1759408246458,-33433.36019136,0.00021917,2]
[388834851,1759408246470,-12561.31795954,0.00021917,2]
[388834852,1759408246494,-1019.381086,0.00021917,2]
[388834853,1759408246507,-1132.436501,0.00021917,2]
[388834854,1759408246518,-507.50429529,0.00021917,2]
[388834856,1759408247048,-24315.14087597,0.00021917,2]
[388834857,1759408247063,-4387.01143307,0.00021917,2]
[388834858,1759408247085,-500.06947179,0.00021917,2]
[388834868,1759408294983,-150.0,0.00020822,2]
[388835059,1759409144917,-174.84675387,0.00019701,2]
[388835060,1759409144948,-150.0,0.00019701,2]
[388835061,1759409144978,-150.0,0.00019701,2]
[388835062,1759409145160,-108.27649226,0.00019701,2]
[388835064,1759409167067,-41.72350774,0.00019701,2]
[388835065,1759409167095,-194.11841708,0.00019701,2]
[388835066,1759409167161,-28.31615036,0.00019701,2]
[388835067,1759409190169,-121.68384964,0.00019701,2]
[388835068,1759409190197,-150.0,0.00019701,2]
[388835069,1759409190315,-49.37230072,0.00019701,2]
[388835070,1759409192106,-100.62769928,0.00019701,2]
[388835071,1759409192127,-150.0,0.00019701,2]
[388835072,1759409192147,-150.0,0.00019701,2]
[388835073,1759409192167,-180.31401092,0.00019701,2]
[388835074,1759409192187,-150.0,0.00019701,2]
[388835075,1759409192208,-150.0,0.00019701,2]
[388835076,1759409192230,-150.0,0.00019701,2]
[388835077,1759409192250,-150.0,0.00019701,2]
[388835078,1759409192272,-150.0,0.00019701,2]
[388835079,1759409192293,-150.0,0.00019975,4]
[388835080,1759409192313,-150.0,0.00019975,4]
[388835081,1759409192337,-150.0,0.00019975,4]
[388835082,1759409192358,-150.0,0.00020066,4]
[388835083,1759409192378,-150.0,0.00020066,4]
[388835084,1759409192399,-150.0,0.00020139,4]
[388835085,1759409192421,-150.0,0.00020139,4]
[388835086,1759409192442,-150.0,0.00020249,4]
[388835087,1759409192463,-150.0,0.00020249,4]
[388835088,1759409192484,-150.0,0.00020249,4]
[388835089,1759409192506,-150.0,0.00020249,4]
[388835090,1759409192527,-150.0,0.00020249,4]
[388835091,1759409192549,-150.0,0.0002037,2]
[388835092,1759409192570,-150.0,0.00020431,4]
[388835093,1759409192591,-150.0,0.00020431,4]
[388835094,1759409192613,-150.0,0.00020431,4]
[388835095,1759409192635,-846.33,0.00020466,2]
[388835096,1759409192656,-103.43283957,0.00020471,2]
[388835121,1759409262523,-2678.74884621,0.00019725,2]
[388835122,1759409262557,-150.0,0.00020369,20]
[388835123,1759409262588,-1606.48668244,0.00020471,2]
[388835124,1759409262616,-355.50406023,0.00020476,2]
[388835125,1759409262644,-200.0,0.00020485,2]
[388835126,1759409262672,-221.46,0.00020498,2]
[388835127,1759409262698,-460.88,0.00020504,2]
[388835128,1759409262732,-150.0,0.00020522,4]
[388835129,1759409262759,-150.0,0.00020522,4]
[388835130,1759409262786,-150.0,0.00020522,4]
[388835131,1759409262813,-150.0,0.00020577,4]
[388835132,1759409262840,-150.0,0.00020577,4]
[388835133,1759409262870,-200.0,0.00020611,2]
[388835134,1759409262896,-370.49393606,0.00020735,2]
[388835135,1759409262924,-151.0,0.00020792,2]
[388835136,1759409262951,-151.0,0.00020792,2]
[388835137,1759409262979,-151.0,0.00020792,2]
[388835138,1759409263006,-151.0,0.00020792,2]
[388835139,1759409263039,-151.0,0.00020792,2]
[388835140,1759409263067,-500.0,0.00020792,2]
[388835141,1759409263096,-151.0,0.00020792,2]
[388835142,1759409263124,-151.0,0.00020792,2]
[388835143,1759409263156,-500.0,0.00020792,2]
[388835144,1759409263187,-151.0,0.00020792,2]